Cogmind - Beta 14 @@@ ROGUE MODE // 2024.09.17 @ 21:13:39 Player: Blanco! Result: Destroyed by G-34 Mercenary with Small Laser Performance ------------- Evolutions (1) 500 Regions Visited (2) 400 Robots Destroyed (12) 60 Value Destroyed (370) 370 Prototype IDs (0) 0 Alien Tech Used (0) 0 Bonus (0) 0 TOTAL SCORE: 1330 Bonus ------- None Cogmind --------- Core Integrity 0/400 Matter 300/300 Energy 100/100 System Corruption 0% Temperature Cool (12) Movement Walking (190) Ox1 Location -9/Materials Parts ------- > --- POWER (2) -------- (None) > --- PROPULSION (2) --- Aluminum Leg > --- UTILITY (3) ------ Large Storage Unit > --- WEAPON (2) ------- (None) > --- INVENTORY (15) --- Compact Wheel Small Storage Unit Medium Laser Peak State ------------ > --- POWER ------------ Ion Engine Light Nuclear Core > --- PROPULSION ------- Aluminum Leg Aluminum Leg > --- UTILITY ---------- Large Storage Unit High-capacity Matter Pod Seismic Detector > --- WEAPON ----------- EM Pulse Gun Assault Rifle > --- INVENTORY -------- Light Ion Engine Light Ion Engine Light Treads Light Treads Compact Wheel Small Storage Unit EM Pulse Gun Medium Laser Particle Gun Light Assault Rifle [Rating: 12] Favorites ----------- Power Ion Engine Engine Ion Engine Power Core Light Nuclear Core Propulsion Aluminum Leg Treads Light Treads Leg Aluminum Leg Wheel Compact Wheel Utility Large Storage Unit Device Seismic Detector Storage Large Storage Unit Weapon Assault Rifle Energy Gun EM Pulse Gun Ballistic Gun Assault Rifle Launcher Grenade Launcher Build | -11 -10 -9 ------- Run | Yrd Mat Mat Slots Evolved 2 | . . 2 Power 1 | . . 1 Propulsion . | . . . Utility 1 | . . 1 Weapon . | . . . Parts Attached 24 | 6 6 12 Power 4 | 1 . 3 Engine 3 | 1 . 2 Core 1 | . . 1 Reactor . | . . . Propulsion 8 | 2 2 4 Treads 2 | . . 2 Leg 4 | . 2 2 Wheel 2 | 2 . . Hover . | . . . Flight . | . . . Utility 4 | 1 2 1 Device 1 | . 1 . Storage 3 | 1 1 1 Processor . | . . . Hackware . | . . . Protection . | . . . Artifact . | . . . Weapon 8 | 2 2 4 Energy Gun 4 | . 1 3 Energy Cannon . | . . . Ballistic Gun 3 | 2 . 1 Ballistic Cannon . | . . . Launcher 1 | . 1 . Special Weapon . | . . . Impact Weapon . | . . . Slashing Weapon . | . . . Piercing Weapon . | . . . Special Melee Weapon . | . . . Unidentified Prototypes . | . . . Parts Lost 17 | . 2 15 Power 4 | . . 4 Propulsion 5 | . 1 4 Utility 2 | . . 2 Weapon 6 | . 1 5 Highest Loss Streak 15 | . 2 15 To Critical Strikes . | . . . Average Slot Usage (%) 89 | . 91 86 Engine 12 | . 14 11 Core 1 | . . 5 Treads 1 | . . 5 Leg 10 | . 8 15 Wheel 12 | . 19 . Device 7 | . 6 10 Storage 16 | . 14 22 Energy Gun 5 | . 4 8 Ballistic Gun 13 | . 15 9 Launcher 5 | . 7 . Peak Build Rating 12 | 6 8 12 Average Rating 7 | 4 6 9 On Entrance 4 | . 6 8 Naked Turns . | . . . Heaviest Build 39 | 13 31 39 Greatest Support 40 | 26 26 40 Greatest Overweight (x) 2 | . 1 2 Average Overweight (x) . | . . . Largest Inventory Capacity 15 | 8 15 15 Average Capacity 13 | 7 13 15 Most Carried 14 | 7 14 11 Average Carried 8 | 3 10 7 Final Capacity 15 | 8 15 15 Final Carried 12 | 6 12 3 Class Distribution -------------------- 100% | Mutant Dominant Class ---------------- Mutant | -10/Materials Mutant | -9/Materials Resources | -11 -10 -9 ----------- Run | Yrd Mat Mat Matter Collected 589 | 215 267 107 Remotely . | . . . Salvage Created 412 | . 305 107 Parts 21 | . 18 3 Haulers Intercepted . | . . . Recyclers Shooed 1 | . 1 . Parts Field Recycled . | . . . Retrieved Matter . | . . . Parts Self-Destructed . | . . . Prevented . | . . . Kills | -11 -10 -9 ------- Run | Yrd Mat Mat Combat Hostiles Destroyed 11 | . 8 3 Melee 1 | . . 1 Guns 3 | . 2 1 AOE 7 | . 6 1 Classes Destroyed 3 | . 3 . Recycler 1 | . 1 . Swarmer 3 | . 3 . Grunt 8 | . 5 3 Best Kill Streak 3 | . 3 1 Combat Bots Only 3 | . 3 1 Max Kills in Single Turn 2 | . 2 1 Gunslinging . | . . . Exploded 2 | . 2 1 Melee 1 | . . 1 Uniques/NPCs Destroyed . | . . . Combat | -11 -10 -9 -------- Run | Yrd Mat Mat Hostile Shots Fired 198 | . 32 166 Missed 45 | . 6 39 Damage Taken 1878 | . 387 1491 Core 502 | . 97 405 Absorbed by Shields . | . . . Core Remaining (%) 80 | 100 61 . Volleys Fired 39 | . 24 15 Largest 2 | . 2 2 Hottest 105 | . 60 105 Shots Fired 65 | . 37 28 Gun 60 | . 32 28 Cannon . | . . . Launcher 5 | . 5 . Special . | . . . Kinetic 34 | . 24 10 Thermal 5 | . . 5 Explosive 5 | . 5 . Electromagnetic 21 | . 8 13 Robot Hit Streak 12 | . 5 12 Robot Miss Streak 3 | . 2 3 Penetration Max . | . . . Secondary Targets . | . . . Shots Hit Robots 42 | . 21 21 Core Hits 23 | . 15 8 Critical Kills . | . . . Critical Parts Destroyed . | . . . Critical Strikes 1 | . . 1 Burn 1 | . . 1 Melee Attacks . | . . . Impact . | . . . Slashing . | . . . Piercing . | . . . Sneak Attacks . | . . . Combat Hostiles . | . . . Follow-up Attacks . | . . . Damage Inflicted 973 | . 608 365 Guns 503 | . 246 257 Cannons . | . . . Explosions 391 | . 346 45 Melee . | . . . Ramming 79 | . 16 63 Kinetic 278 | . 181 97 Thermal 187 | . 106 81 Explosive 240 | . 240 . Electromagnetic 189 | . 65 124 Impact . | . . . Slashing . | . . . Piercing . | . . . Highest Corruption . | . . . Average Corruption . | . . . Corruption Purged . | . . . Corruption Blocked . | . . . Overload Shots . | . . . Overflow Damage 10 | . 10 . Projectiles . | . . . Explosions 10 | . 10 . Melee . | . . . Knockbacks . | . . . Impact . | . . . Kinetic . | . . . Secondary . | . . . Self-Inflicted Damage 116 | . 92 24 Shots 4 | . 3 1 Rammed 24 | . 2 22 Targets Rammed 29 | . 3 26 Kicked 4 | . 1 3 Crushed 1 | . . 1 Highest Temperature 334 | . 18 334 Average Temperature 109 | . 10 141 Received Heat Transfer 972 | . 153 819 Effects 2 | . . 2 Interference 2 | . . 2 Siege Activations . | . . . Robots Corrupted . | . . . Combat Hostiles . | . . . Parts Fried 1 | . . 1 Impact Corruptions . | . . . Robots Melted . | . . . Combat Hostiles . | . . . Parts Melted . | . . . Heat Transferred 298 | . 150 148 Parts Sabotaged . | . . . Parts Stolen . | . . . Parts Stripped . | . . . Power Chain Reactions 3 | . 2 1 Alert | -11 -10 -9 ------- Run | Yrd Mat Mat Peak Influence 250 | . 250 77 Initial 20 | . . 20 Average 94 | . 135 42 Maximum Alert Level 1 | . 1 . Low Security (%) 83 | 100 72 100 Level 1 16 | . 27 . Level 2 . | . . . Level 3 . | . . . Level 4 . | . . . Level 5 . | . . . High Security . | . . . Max Security . | . . . Squads Dispatched 3 | . 1 2 Investigation 1 | . 1 . Extermination . | . . . Reinforcement 2 | . . 2 Assault . | . . . Garrison . | . . . Intercept . | . . . Searches Triggered . | . . . Construction Impeded . | . . . Haulers Reinforced . | . . . Active Scanning Responses . | . . . Cargo Convoy Interrupts . | . . . Stealth | -11 -10 -9 --------- Run | Yrd Mat Mat Distress Signals 2 | . . 2 Communications Jammed . | . . . Distress Signals . | . . . Times Spotted 23 | . 9 14 Peak Tracking Total 7 | . 3 7 Tactical Retreats 1 | . . 1 Traps | -11 -10 -9 ------- Run | Yrd Mat Mat Traps Triggered 1 | . 1 . Indirectly . | . . . Trap Hack Attempts . | . . . Triggered . | . . . Disarmed . | . . . Reprogrammed . | . . . Reused . | . . . Traps Extracted . | . . . Installed . | . . . Triggered . | . . . Machines | -11 -10 -9 ---------- Run | Yrd Mat Mat Machines Disabled 1 | . . 1 Max in Single Turn 1 | . . 1 Machines Repaired . | . . . Machines Dismantled . | . . . Machines Sabotaged . | . . . Overloaded Fab Kills . | . . . Hacking | -11 -10 -9 --------- Run | Yrd Mat Mat Machines Accessed 1 | . 1 . Terminals 1 | . 1 . Fabricators . | . . . Repair Stations . | . . . Recycling Units . | . . . Scanalyzers . | . . . Garrison Access . | . . . Total Hacks 2 | . 2 . Successful 2 | . 2 . Failed . | . . . Catastrophic . | . . . Database Lockouts . | . . . Manual . | . . . Terminals 2 | . 2 . Fabricators . | . . . Repair Stations . | . . . Recycling Units . | . . . Scanalyzers . | . . . Garrison Access . | . . . Terminal Hacks 2 | . 2 . Emergency Access Points 1 | . 1 . Alert Level 1 | . 1 . Fabricator Hacks . | . . . Repair Station Hacks . | . . . Recycling Unit Hacks . | . . . Scanalyzer . | . . . Garrison Access Hacks . | . . . Unauthorized Hacks . | . . . Terminals . | . . . Fabricators . | . . . Repair Stations . | . . . Recycling Units . | . . . Scanalyzers . | . . . Garrison Access . | . . . Data Cores Recovered . | . . . Used . | . . . Hacking Detections . | . . . Full Trace Events . | . . . Feedback Events . | . . . Feedback Blocked . | . . . Robot Schematics Acquired . | . . . Robots Built . | . . . Authchips . | . . . Time . | . . . Total Robot Build Rating . | . . . Part Schematics Acquired . | . . . Parts Built . | . . . Authchips . | . . . Time . | . . . Total Part Build Rating . | . . . Parts Repaired . | . . . Time . | . . . Parts Recycled . | . . . Recycled Matter . | . . . Retrieved Matter . | . . . Retrieved Components . | . . . Parts Scanalyzed . | . . . Part Schematics Acquired . | . . . Parts Damaged . | . . . Bothacking | -11 -10 -9 ------------ Run | Yrd Mat Mat Used RIF Installer . | . . . Robots Hacked . | . . . Non-combat . | . . . Combat . | . . . Robot Hacks Applied . | . . . Relay Couplers Released . | . . . Fabnet Peak Effective % . | . . . Robots Rewired . | . . . Allies Hacked . | . . . Hacks Repelled . | . . . Allies | -11 -10 -9 -------- Run | Yrd Mat Mat Total Allies . | . . . Largest Group . | . . . Highest-Rated Group . | . . . Highest-Rated Ally . | . . . Total Orders . | . . . Ally Attacks . | . . . Total Damage . | . . . Kills . | . . . Allies Corrupted . | . . . Allies Melted . | . . . Intel | -11 -10 -9 ------- Run | Yrd Mat Mat Robot Analysis Total . | . . . Derelict Logs Recovered . | . . . Drone Launches . | . . . Drone Recoveries . | . . . Exploration | -11 -10 -9 ------------- Run | Yrd Mat Mat Turns Passed 705 | 64 418 223 Spaces Moved 402 | 52 287 63 Core 2 | 2 . . Treads 7 | . . 7 Legs 112 | . 56 56 Wheels 281 | 50 231 . Hover . | . . . Flight . | . . . Fastest Speed 50 | 50 90 160 Average Speed 125 | 89 117 192 Slowest Speed 260 | 100 190 260 Overloaded Moves . | . . . Propulsion Burnouts . | . . . Robots Hopped . | . . . Cave-ins Triggered . | . . . Exploration Rate (%) 20 | 4 41 16 Regions Visited 2 Branch Regions . Pre-discovered Areas . | . . . Known Exits Taken . | . . . Unknown Exits Taken 2 | 1 1 . Scrap Searched . | . . . Spaces Dug . | . . . Terrain Destroyed 50 | . 44 6 Melee . | . . . Projectile . | . . . AOE 50 | . 44 6 Terrain Rammed . | . . . Walls Destroyed . | . . . Machines Disabled . | . . . Actions | -11 -10 -9 --------- Run | Yrd Mat Mat Total 516 | 69 330 117 Wait . | . . . Move 400 | 51 286 63 Hop . | . . . Pick Up 23 | 12 10 1 Fast Attach . | . . . Attach 20 | 6 4 10 Detach . | . . . Swap 4 | . 2 2 Drop 1 | . 1 . Fire 39 | . 24 15 Melee . | . . . Ram 3 | . 2 1 Kick 4 | . 1 3 Crush 22 | . . 22 Escape Stasis . | . . . Rewire . | . . . Trap . | . . . Miscellaneous . | . . . Route ------- -11/Scrapyard -10/Materials -9/Materials History --------- Turn | Location | Event 6 | -11/Scrapyard | Discovered new exit (range 16) 65 | -11/Scrapyard | Entered Materials 211 | -10/Materials | Discovered new exit (range 13) 311 | -10/Materials | Build established: Mutant 483 | -10/Materials | Entered another Materials area 483 | -9/Materials | Evolved 2 slots: Power x1, Utility x1 685 | -9/Materials | Core integrity fell below 50% 701 | -9/Materials | Core integrity fell below 20% 706 | -9/Materials | Destroyed by G-34 Mercenary with Small Laser Last Messages --------------- 00638_ Slammed into G-47 Trooper. 00641_ Crushed G-47 Trooper. 00641_ G-47 Trooper destroyed. 00642_ Acquired 18 matter. 00644_ Acquired Aluminum Leg. 00648_ Particle Gun destroyed. 00653_ Slammed into G-34 Mercenary. 00655_ Lgt. Ion Engine destroyed. 00656_ Slammed into G-34 Mercenary. 00662_ K-01 Serf collects debris. 00662_ Slammed into G-34 Mercenary. 00673_ Lgt. Treads destroyed. 00676_ Slammed into G-34 Mercenary. 00683_ Kicked G-34 Mercenary out of the way. 00684_ Lgt. Assault Rifle destroyed. 00685_ K-01 Serf destroyed. 00687_ Seismic Detector destroyed. 00688_ R-06 Scavenger collects Wheel. 00696_ Aluminum Leg destroyed. 00705_ Hcp. Matter Pod destroyed. Map ----- +----------------------------------------------------+ | ?????????????????????????????????????????????????? | | ?????????????????????????????????????????????????? | | ?????????????????????????????????????????????????? | | ?????????????????????????????????????????????????? | | ?????????????????????????????????????????????????? | | ?????????????????????????????????????????????????? | | ?????????????????????????????????????????????????? | | ?????????????????????????????????????????????????? | | ?????????????????????????????????????????????????? | | ?????????????????????????????????????????????????? | | ???????????????????? ?? ?????????????????????? | | ??????????????????? ? #????????????????????? | | ???????????????????" ? #????????????????????? | | ???????????????????# ## +????????????????????? | | ??????###??????##### #????????????????????? | | ????? ??????? #????????????????????? | | ????? ???????? w!! #?###????????????????? | | ????? ????????? !! #? ?????????????????? | | ????? #????????# ! # ??????????????????? | | !????" #????????# # ???????????????????? | | ? """ #????????# a/????????????????????? | | ? """ #????????# #????????????????????? | | """ #????????# k#????????????????????? | | ##+####### u #????????????????????? | | og g ]!#????????????????????? | | """ g @]!#????????????????????? | | """ u g rg g #????????????????????? | | """ #######/## #????????????????????? | | """ #??# ####### #????????????????????? | | #### #?????# ^#????????????????????? | | + #?????# o#????????????????????? | | ""T"" #####% #?????# a#????????????????????? | | """"" #???# #?????# #????????????????????? | | #####+###### #?????# #????????????????????? | | " ## #?????? +????????????????????? | | # ## #?????? #????????????????????? | | # ## #?????? #????????????????????? | | / ## #?????? #????????????????????? | | # """ "" ## #?????? #????????????????????? | | # """ S"" ## #?????? #????????????????????? | | # """ "" ########?????? ?????????????????????? | | # #?????????????????????????????????????? | | ###########?????????????????????????????????????? | | #???????????????????????????????????????????????? | | #???????????????????????????????????????????????? | | #???????????????????????????????????????????????? | | #???????????????????????????????????????????????? | | #???????????????????????????????????????????????? | | ???????????????????????????????????????????????? | | ??????????????????????????????????????????????? | +----------------------------------------------------+ Best States ------------- Heat Dissipation 28 Energy Generation 19 Energy Capacity 310 Matter Stores 481 Matter Capacity 500 Sight Range 16 Terrain Scan Density 10 Evasion (%) 42 Recoil Reduction 2 Item Schematics ----------------- None Robot Schematics ------------------ None Fabricated ------------ Nothing Alien Tech Used ----------------- None Achievements -------------- None Challenges ------------ None Game ------ Seed GreatAlphaScrapsphere Manual? 0 Play Time 00:16:36 Cumulative 7.5 hours Start 2024.09.17 @ 20:58:04 End 2024.09.17 @ 21:13:39 Sessions 1 Manual Loads 0 Difficulty Rogue Special Mode None Game No. 8 Rogue 8 Adventurer 0 Explorer 0 Win Type - Total 0 Types 0/0/0/0/0/0/0/0/0 Lore% 2 Gallery% 10 Achievement% 10 Wizard Run 0 Options --------- Layout 0 ASCII 0 Keyboard 0 Movement Arrows Keybinds 0 Fullscreen 2 Font 18/SmallcapsGlow Map View 38x25 Zoom Use 99% Tactical HUD 1 Map Filters NONE Filters NONE Steam 1 RUN: 099e67de-2b22-4fb2-84a6-58ba80d4f515